Cogmind - Beta 16.1 @@@ ROGUE MODE // 2026.03.03 @ 01:47:01 Player: Deloads Result: Smashed by cave-in Performance ------------- Evolutions (0) 0 Regions Visited (4) 800 Robots Destroyed (8) 40 Value Destroyed (115) 115 Prototype IDs (23) 460 Alien Tech Used (0) 0 Bonus (300) 300 TOTAL SCORE: 1715 Bonus ------- Aligned with FarCom 300 Cogmind --------- Core Integrity 0/250 Matter 131/300 Energy 100/100 System Corruption 5% Temperature Cool (0) Movement Treading (157) Location -9/Mines Parts ------- > --- POWER (1) -------- (None) > --- PROPULSION (2) --- Armored Treads Advanced Treads > --- UTILITY (2) ------ Large Storage Unit > --- WEAPON (2) ------- Assault Rifle Light Assault Rifle > --- INVENTORY (15) --- Ion Engine Light Ion Engine Light Ion Engine Light Treads Aluminum Leg Aluminum Leg Flight Unit Flight Unit Flight Unit Flight Unit Cloak of Protection Skeleton Box Assault Rifle Light Assault Rifle Field Lobotomy Kit (5) Peak State ------------ > --- POWER ------------ Light Ion Engine > --- PROPULSION ------- Armored Treads Advanced Treads > --- UTILITY ---------- Large Storage Unit Advanced Targeting Computer > --- WEAPON ----------- Assault Rifle Light Assault Rifle > --- INVENTORY -------- Ion Engine Light Ion Engine Light Ion Engine Light Treads Aluminum Leg Aluminum Leg Wheel Flight Unit Flight Unit Flight Unit Flight Unit Cloak of Protection Assault Rifle Light Assault Rifle Field Lobotomy Kit [Rating: 16] Favorites ----------- Power Light Ion Engine Engine Light Ion Engine Propulsion Wheel Treads Advanced Treads Wheel Wheel Utility Large Storage Unit Device Improved Terrain Scanner Storage Large Storage Unit Processor Advanced Targeting Computer Weapon Assault Rifle Ballistic Gun Assault Rifle Build | -11 -10 -10 -10 -9 ------- Run | Yrd Mat Min Exi Min Slots Evolved . | . . . . . Power . | . . . . . Propulsion . | . . . . . Utility . | . . . . . Weapon . | . . . . . Parts Attached 12 | 7 1 3 1 . Power 2 | 1 . . 1 . Engine 2 | 1 . . 1 . Core . | . . . . . Reactor . | . . . . . Propulsion 4 | 2 . 2 . . Treads 2 | . . 2 . . Leg . | . . . . . Wheel 2 | 2 . . . . Hover . | . . . . . Flight . | . . . . . Utility 4 | 2 1 1 . . Device 1 | 1 . . . . Storage 2 | 1 1 . . . Processor 1 | . . 1 . . Hackware . | . . . . . Protection . | . . . . . Artifact . | . . . . . Weapon 2 | 2 . . . . Energy Gun . | . . . . . Energy Cannon . | . . . . . Ballistic Gun 2 | 2 . . . . Ballistic Cannon . | . . . . . Launcher . | . . . . . Special Weapon . | . . . . . Impact Weapon . | . . . . . Slashing Weapon . | . . . . . Piercing Weapon . | . . . . . Special Melee Weapon . | . . . . . Unidentified Prototypes . | . . . . . Parts Lost 2 | . . . . 2 Power 1 | . . . . 1 Propulsion . | . . . . . Utility 1 | . . . . 1 Weapon . | . . . . . Highest Loss Streak 2 | . . . . 2 To Critical Strikes . | . . . . . Average Backups 12 | 3 6 12 14 15 Power 2 | . 1 2 2 3 Propulsion 6 | 2 4 7 7 7 Utility . | . . 1 1 1 Weapon 1 | . 1 1 2 2 Tool/Special . | . . . . . Unused Backups 17 | . . 2 1 14 Power 3 | . . . 1 2 Propulsion 9 | . . 2 . 7 Utility 1 | . . . . 1 Weapon 2 | . . . . 2 Tool/Special 2 | . . . . 2 Average Slot Usage (%) 99 | . 100 100 100 91 Engine 13 | . 14 14 14 10 Treads 14 | . . 7 28 28 Wheel 13 | . 28 20 . . Device 6 | . 14 10 . . Storage 14 | . 14 14 14 14 Processor 7 | . . 3 14 10 Ballistic Gun 28 | . 28 28 28 28 Peak Build Rating 16 | 9 9 14 16 16 Average Rating 11 | 5 9 10 14 14 On Entrance 9 | . 9 9 14 16 Avg Prop Armor Cover (%) . | . . . . . Naked Turns . | . . . . . Heaviest Build 27 | 12 27 27 26 26 Greatest Support 42 | 20 20 42 42 42 Greatest Overweight (x) 1 | 1 1 1 . . Average Overweight (x) . | . . . . . Largest Inventory Capacity 15 | 8 15 15 15 15 Average Capacity 14 | 7 9 15 15 15 Most Carried 15 | 7 7 15 15 15 Average Carried 12 | 4 6 12 14 15 Final Capacity 15 | 8 15 15 15 15 Final Carried 15 | 6 7 14 15 15 Class Distribution -------------------- 100% | Mutant Dominant Class ---------------- Mutant | -10/Materials Mutant | -10/Mines Mutant | -10/Exiles Mutant | -9/Mines Resources | -11 -10 -10 -10 -9 ----------- Run | Yrd Mat Min Exi Min Matter Collected 231 | 145 . 86 . . Remotely . | . . . . . Salvage Created 102 | 16 . 86 . . Parts 15 | 3 . 12 . . Haulers Intercepted . | . . . . . Recyclers Shooed 1 | . . . . 1 Parts Field Recycled . | . . . . . Retrieved Matter . | . . . . . Parts Self-Destructed . | . . . . . Prevented . | . . . . . Parts Restored . | . . . . . Kills | -11 -10 -10 -10 -9 ------- Run | Yrd Mat Min Exi Min Combat Hostiles Destroyed 6 | . . 5 . 1 Guns 6 | . . 5 . 1 Classes Destroyed 4 | 1 . 2 . 1 Builder 1 | . . 1 . . Tunneler 1 | 1 . . . . Swarmer 5 | . . 5 . . Demolisher 1 | . . . . 1 Best Kill Streak 3 | 1 . 3 . 1 Combat Bots Only 3 | . . 3 . 1 Max Kills in Single Turn 2 | 1 . 2 . 1 Gunslinging 1 | . . 1 . . Exploded . | . . . . . Melee . | . . . . . Uniques/NPCs Destroyed . | . . . . . Combat | -11 -10 -10 -10 -9 -------- Run | Yrd Mat Min Exi Min Hostile Shots Fired 16 | . . 8 . 8 Missed 3 | . . 3 . . Hits 13 | . . 5 . 8 Projectile 13 | . . 5 . 8 AOE 11 | . . . . 11 Damage Taken 841 | . . 78 . 763 Core 304 | . . . . 304 Absorbed by Shields . | . . . . . Core Remaining (%) 100 | 100 . . . . Volleys Fired 21 | 6 . 8 . 7 Largest 2 | 2 . 2 . 2 Hottest 40 | 40 . 40 . 40 Shots Fired 42 | 12 . 16 . 14 Gun 42 | 12 . 16 . 14 Cannon . | . . . . . Launcher . | . . . . . Special . | . . . . . Kinetic 42 | 12 . 16 . 14 Thermal . | . . . . . Explosive . | . . . . . Electromagnetic . | . . . . . Robot Hit Streak 6 | 4 . 3 . 6 Robot Miss Streak 2 | 2 . 2 . 2 Penetration Max . | . . . . . Secondary Targets 1 | . . 1 . . Max Gunslinging Chain 1 | . . 1 . . Shots Hit Robots 26 | 7 . 9 . 10 Core Hits 12 | 1 . 7 . 4 Critical Kills . | . . . . . Critical Parts Destroyed . | . . . . . Critical Strikes . | . . . . . Melee Attacks . | . . . . . Impact . | . . . . . Slashing . | . . . . . Piercing . | . . . . . Sneak Attacks . | . . . . . Combat Hostiles . | . . . . . Follow-up Attacks . | . . . . . Damage Inflicted 288 | 75 1 99 . 113 Guns 287 | 75 . 99 . 113 Cannons . | . . . . . Explosions . | . . . . . Melee . | . . . . . Ramming 1 | . 1 . . . Kinetic 287 | 75 . 99 . 113 Thermal . | . . . . . Explosive . | . . . . . Electromagnetic . | . . . . . Impact . | . . . . . Slashing . | . . . . . Piercing . | . . . . . Highest Corruption 5 | . . . . 5 Average Corruption 5 | . . . . 5 Corruption Purged . | . . . . . Corruption Blocked . | . . . . . Overload Shots . | . . . . . Overflow Damage . | . . . . . Projectiles . | . . . . . Explosions . | . . . . . Melee . | . . . . . Knockbacks . | . . . . . Impact . | . . . . . Kinetic . | . . . . . Secondary . | . . . . . Self-Inflicted Damage . | . . . . . Shots . | . . . . . Rammed 1 | . 1 . . . Targets Rammed 1 | . 1 . . . Kicked . | . . . . . Crushed . | . . . . . Highest Temperature . | . . . . . Average Temperature . | . . . . . Received Heat Transfer . | . . . . . Siege Activations . | . . . . . Martial Activations . | . . . . . Shielding Activations . | . . . . . Robots Disrupted . | . . . . . Combat Hostiles . | . . . . . Robots Corrupted . | . . . . . Combat Hostiles . | . . . . . Parts Fried . | . . . . . Impact Corruptions . | . . . . . Robots Melted . | . . . . . Combat Hostiles . | . . . . . Parts Melted . | . . . . . Heat Transferred . | . . . . . Parts Sabotaged . | . . . . . Parts Stolen . | . . . . . Parts Stripped . | . . . . . Power Chain Reactions . | . . . . . Alert | -11 -10 -10 -10 -9 ------- Run | Yrd Mat Min Exi Min Maximum Alert Level . | . . . . . Low Security (%) 100 | 100 100 100 . 100 Level 1 . | . . . . . Level 2 . | . . . . . Level 3 . | . . . . . Level 4 . | . . . . . Level 5 . | . . . . . High Security . | . . . . . Max Security . | . . . . . Peak Influence 65 | . 8 65 . 30 Initial . | . . . . . Average 7 | . . 8 . 3 Influence Increases 183 | 5 8 140 . 30 Destroy 0b10 Robot/C 120 | . . 100 . 20 Destroy 0b10 Robot/NC 10 | 5 . 5 . . Destroy Leader 30 | . . 20 . 10 Successful Hack 8 | . 8 . . . Lose Combat Pursuer 15 | . . 15 . . Influence Decreases 153 | 5 8 140 . . Time Decay 153 | 5 8 140 . . Squads Dispatched . | . . . . . Investigation . | . . . . . Extermination . | . . . . . Reinforcement . | . . . . . Assault . | . . . . . Garrison . | . . . . . Intercept . | . . . . . Searches Triggered . | . . . . . Construction Impeded . | . . . . . Haulers Reinforced . | . . . . . Active Scanning Responses . | . . . . . Cargo Convoy Interrupts . | . . . . . Stealth | -11 -10 -10 -10 -9 --------- Run | Yrd Mat Min Exi Min Distress Signals . | . . . . . Communications Jammed . | . . . . . Distress Signals . | . . . . . Times Spotted 7 | . . 5 . 2 Peak Tracking Total 3 | . . 3 . 1 Tactical Retreats 1 | . . 1 . . Traps | -11 -10 -10 -10 -9 ------- Run | Yrd Mat Min Exi Min Traps Triggered . | . . . . . Indirectly . | . . . . . Trap Hack Attempts . | . . . . . Triggered . | . . . . . Disarmed . | . . . . . Reprogrammed . | . . . . . Reused . | . . . . . Traps Extracted . | . . . . . Installed . | . . . . . Triggered . | . . . . . Machines | -11 -10 -10 -10 -9 ---------- Run | Yrd Mat Min Exi Min Machines Disabled . | . . . . . Max in Single Turn . | . . . . . Machines Repaired . | . . . . . Machines Dismantled . | . . . . . Machines Sabotaged . | . . . . . Overloaded Fab Kills . | . . . . . Hacking | -11 -10 -10 -10 -9 --------- Run | Yrd Mat Min Exi Min Machines Accessed 4 | . 2 1 1 . Terminals 2 | . 2 . . . Fabricators . | . . . . . Repair Stations . | . . . . . Recycling Units . | . . . . . Scanalyzers . | . . . . . Garrison Access . | . . . . . Total Hacks 7 | . 5 1 1 . Successful 4 | . 2 1 1 . Failed 3 | . 3 . . . Catastrophic . | . . . . . Database Lockouts . | . . . . . Manual 6 | . 5 . 1 . Terminals 5 | . 5 . . . Fabricators . | . . . . . Repair Stations . | . . . . . Recycling Units . | . . . . . Scanalyzers . | . . . . . Garrison Access . | . . . . . Terminal Hacks 4 | . 2 1 1 . Open Door 1 | . . 1 . . Branch Access Points 1 | . 1 . . . Terminal Index 1 | . 1 . . . Proto ID Catalog 1 | . . . 1 . Fabricator Hacks . | . . . . . Repair Station Hacks . | . . . . . Recycling Unit Hacks . | . . . . . Scanalyzer . | . . . . . Garrison Access Hacks . | . . . . . Unauthorized Hacks . | . . . . . Terminals . | . . . . . Fabricators . | . . . . . Repair Stations . | . . . . . Recycling Units . | . . . . . Scanalyzers . | . . . . . Garrison Access . | . . . . . Data Cores Recovered . | . . . . . Used . | . . . . . Hacking Detections 2 | . 2 . . . Full Trace Events . | . . . . . Feedback Events . | . . . . . Feedback Blocked . | . . . . . Robot Schematics Acquired . | . . . . . Robots Built . | . . . . . Authchips . | . . . . . Time . | . . . . . Total Robot Build Rating . | . . . . . Part Schematics Acquired . | . . . . . Parts Built . | . . . . . Authchips . | . . . . . Time . | . . . . . Total Part Build Rating . | . . . . . Part Studies Acquired . | . . . . . Parts Repaired . | . . . . . Time . | . . . . . Parts Recycled . | . . . . . Recycled Matter . | . . . . . Retrieved Matter . | . . . . . Retrieved Components . | . . . . . Parts Scanalyzed . | . . . . . Part Schematics Acquired . | . . . . . Parts Damaged . | . . . . . Bothacking | -11 -10 -10 -10 -9 ------------ Run | Yrd Mat Min Exi Min Used RIF Installer . | . . . . . Robots Hacked . | . . . . . Non-combat . | . . . . . Combat . | . . . . . Robot Hacks Applied . | . . . . . Relay Couplers Released . | . . . . . Fabnet Peak Effective % . | . . . . . Robots Rewired . | . . . . . Allies Hacked . | . . . . . Hacks Repelled . | . . . . . Allies | -11 -10 -10 -10 -9 -------- Run | Yrd Mat Min Exi Min Total Allies . | . . . . . Largest Group . | . . . . . Highest-Rated Group . | . . . . . Highest-Rated Ally . | . . . . . Total Orders . | . . . . . Ally Attacks . | . . . . . Total Damage . | . . . . . Kills . | . . . . . Allies Corrupted . | . . . . . Allies Melted . | . . . . . Intel | -11 -10 -10 -10 -9 ------- Run | Yrd Mat Min Exi Min Active Infowar (turns) 873 | 11 62 800 . . Terrain 873 | 11 62 800 . . Robot Analysis Total . | . . . . . Derelict Logs Recovered 1 | . . . . 1 Drone Launches . | . . . . . Drone Recoveries . | . . . . . Exploration | -11 -10 -10 -10 -9 ------------- Run | Yrd Mat Min Exi Min Turns Passed 1842 | 78 62 1074 570 58 Spaces Moved 993 | 56 73 480 359 25 Core 1 | 1 . . . . Treads 547 | . . 163 359 25 Legs . | . . . . . Wheels 445 | 55 73 317 . . Hover . | . . . . . Flight . | . . . . . Fastest Speed 50 | 50 80 95 157 157 Average Speed 127 | 80 82 116 157 157 Slowest Speed 225 | 95 95 225 157 157 Overloaded Moves . | . . . . . Propulsion Burnouts . | . . . . . Robots Hopped . | . . . . . Potential Cave-ins . | . . . . . Cave-ins Triggered 2 | . . . . 2 Exploration Rate (%) 40 | 3 20 92 72 13 Regions Visited 4 Branch Regions 3 Pre-discovered Areas 1 | . . . . 1 Known Exits Taken 1 | . 1 . . . Unknown Exits Taken 3 | 1 . 1 1 . Scrap Searched . | . . . . . Spaces Dug . | . . . . . Terrain Destroyed . | . . . . . Melee . | . . . . . Projectile . | . . . . . AOE . | . . . . . Terrain Rammed . | . . . . . Walls Destroyed . | . . . . . Machines Disabled . | . . . . . Actions | -11 -10 -10 -10 -9 --------- Run | Yrd Mat Min Exi Min Total 1530 | 75 74 982 367 32 Wait 480 | . . 480 . . Move 989 | 55 72 479 358 25 Hop . | . . . . . Pick Up 19 | 7 . 8 4 . Fast Attach 7 | 6 . 1 . . Attach 1 | 1 . . . . Detach . | . . . . . Swap 5 | . 1 3 1 . Drop 7 | . . 3 4 . Fire 21 | 6 . 8 . 7 Melee . | . . . . . Ram 1 | . 1 . . . Kick . | . . . . . Crush . | . . . . . Escape Stasis . | . . . . . Rewire . | . . . . . Trap . | . . . . . Miscellaneous . | . . . . . Route ------- -11/Scrapyard -10/Materials (discovered 2 exits: *Min x2) -10/Mines (discovered 3 exits: [*Mat x2] / *Exi) -10/Exiles (discovered 2 exits: [*Min x2]) -9/Mines (discovered 1 exit: [*Mat]) History --------- Turn | Location | Event 17 | -11/Scrapyard | Discovered new exit (range 15) 79 | -11/Scrapyard | Entered Materials 94 | -10/Materials | Identified exit to Mines 141 | -10/Materials | Entered Mines 163 | -10/Mines | Met a Derelict bent on vengeance 302 | -10/Mines | Build established: Mutant 305 | -10/Mines | Discovered new exit (range 5) 339 | -10/Mines | Discovered new exit (range 9) 932 | -10/Mines | Met a Derelict who couldn't figure out how to use a Trap Extractor 1198 | -10/Mines | Deemed a non-threat by the Exiles lab entrance 1198 | -10/Mines | Discovered new exit (range 5) 1215 | -10/Mines | Entered Exiles 1263 | -10/Exiles | Discovered new exit (range 14) 1307 | -10/Exiles | Met 8R-AWN 1341 | -10/Exiles | Met EX-HEX 1437 | -10/Exiles | Met EX-DEC 1536 | -10/Exiles | Met EX-BIN 1555 | -10/Exiles | Aligned with FarCom system 1557 | -10/Exiles | Given EX-Vault access code 1599 | -10/Exiles | Opened EX-Vault 1608 | -10/Exiles | Found Field Lobotomy Kit 1616 | -10/Exiles | Found Cloak of Protection 1630 | -10/Exiles | Found Skeleton Box 1663 | -10/Exiles | Warned to stay clear of 0b10 Research branches 1667 | -10/Exiles | Exiles lab attacked by MAIN.C 1772 | -10/Exiles | Discovered new exit (range 10) 1785 | -10/Exiles | Stole three prototypes: Cloak of Protection, Skeleton Box, Field Lobotomy Kit 1785 | -10/Exiles | Entered Mines 1800 | -9/Mines | Learned location of Recycling (-7) 1810 | -9/Mines | Assembled infested the area 1812 | -9/Mines | Discovered new exit (range 13) 1815 | -9/Mines | Assisted by a Guerilla fighting off Assembled 1827 | -9/Mines | Crushed by falling debris 1827 | -9/Mines | Core integrity fell below 50% 1833 | -9/Mines | Core integrity fell below 20% 1844 | -9/Mines | Crushed by falling debris 1844 | -9/Mines | Smashed by cave-in Last Messages --------------- K-01 Serf collects debris. R-06 Scavenger destroyed. The unstable cave ceiling collapses. K-01 Serf collects debris. The unstable cave ceiling collapses. Crushed by falling debris. Adv. Targeting Computer destroyed. System corrupted by crushing effect (+5). The unstable cave ceiling collapses. K-01 Serf collects debris. The unstable cave ceiling collapses. K-01 Serf collects debris. D-53 Grenadier destroyed. K-01 Serf collects debris. The unstable cave ceiling collapses. K-01 Serf collects debris. U-05 Engineer builds a Wall. K-01 Serf collects debris. The unstable cave ceiling collapses. Crushed by falling debris. Map ----- +----------------------------------------------------+ | | | | | | | | | | | | | | | | | | | | | | | | | | | ?????????????????????#??????????????????????????? | | ?????????????????####;###?????#########?????????? | | ???????????????### #????# #?????????? | | ??????????????## < #???# #?????????? | | ?????????????## #???# """ #?????????? | | ???????????? #???# """ #?????????? | | ???????????? #???# """ #?????????? | | ???????????? % ###?##### ###?????????? | | ???????????# !% ####### #???????????? | | ???????????# !! %% ## #???????????? | | ???????????# !! ! k# ## ####???????????? | | ?????????????? !! k # #??????????????? | | ???????????????????## @ ## #??????????????? | | ???????????????????# ## #??????????????? | | ???????????????????## # #??????????????? | | ???????????????????# ####??????????????? | | ???????????????????# #?????????????????? | | ???????????????????## ##?????????????????? | | ????????????????????## u ????????????????? | | ?????????????????????# # ####???????????????? | | ????????????????????? ? #??????????????????? | | ???????????????????? ? #??????????????????? | | ???????????????????######?####??????????????????? | | ????????????????????????????????????????????????? | | ????????????????????????????????????????????????? | | ????????????????????????????????????????????????? | | ????????????????????????????????????????????????? | | ????????????????????????????????????????????????? | | ????????????????????????????????????????????????? | | ????????????????????????????????????????????????? | | ????????????????????????????????????????????????? | | ????????????????????????????????????????????????? | | ????????????????????????????????????????????????? | | ????????????????????????????????????????????????? | | ????????????????????????????????????????????????? | | ????????????????????????????????????????????????? | | ????????????????????????????????????????????????? | +----------------------------------------------------+ Best States ------------- Heat Dissipation 25 Energy Generation 10 Energy Capacity 125 Matter Stores 195 Matter Capacity 300 Sight Range 16 Terrain Scan Range 16 Terrain Scan Density 10 Evasion (%) 44 Targeting Accuracy 8 Recoil Reduction 2 Item Schematics ----------------- None Robot Schematics ------------------ None Fabricated ------------ Nothing Repaired ---------- Nothing Studied --------- None Alien Tech Used ----------------- None Achievements -------------- None Challenges ------------ None Game ------ Seed CouplerMobileCrosscalibrator Manual? 0 Play Time 00:12:02 Cumulative 8.5 hours Start 2026.03.03 @ 01:35:05 End 2026.03.03 @ 01:47:01 Sessions 1 Manual Loads 0 Difficulty Rogue Special Mode None Game No. 35 Rogue 35 Adventurer 0 Explorer 0 Win Type - Total 0 Types 0/0/0/0/0/0/0/0/0/0 Lore% 3 Gallery% 10 Achievement% 13 Wizard Run 0 Options --------- Layout 1 ASCII 0 Keyboard 0 Movement Numpad Keybinds 0 Fullscreen 2 Font 24/Terminus Map View 50x35 Zoom Use 0% Tactical HUD 0 Map Filters NONE Filters NONE Steam 1 RUN: 9834062d-ab2c-4bef-bcd3-2cbc8dfa857f